[Event "LJ Slovak Open 2022"]
[Site "Liptovsky Jan"]
[Date "2022.06.23"]
[Round "1.11"]
[White "Mikula, Maciej"]
[Black "Bombek, Peter"]
[Result "0-1"]
[ECO "C00"]
[WhiteElo "1567"]
[BlackElo "2111"]
[Annotator "NA RC"]
[PlyCount "178"]
[EventDate "2022.06.23"]
[EventType "swiss"]
[EventCountry "SVK"]
[SourceTitle "playchess.com"]
[Source "ChessBase"]
[SourceQuality "1"]
[TimeControl "3600+30"]

1. e4 {[%emt 0:00:40]} e6 {[%emt 0:00:15]} 2. Nf3 {[%emt 0:00:17]} d5 {[%emt 0:00:04]} 3. e5 {[%emt 0:00:38]} c5 {[%emt 0:00:09]} 4. b4 {[%emt 0:00:41]} b6 {[%emt 0:00:34]} 5. bxc5 {[%emt 0:02:48]} bxc5 {[%emt 0:00:09]} 6. c3 {[%emt 0:00:14]} Nc6 {[%emt 0:02:28]} 7. d4 {[%emt 0:02:48]} Qa5 {[%emt 0:02:25]} 8. Bd2 {[%emt 0:05:31]} cxd4 {[%emt 0:03:10]} 9. cxd4 {[%emt 0:02:05]} Bb4 {[%emt 0:00:13]} 10. Bd3 {[%emt 0:04:52]} Nge7 {[%emt 0:01:43]} 11. O-O {[%emt 0:01:28]} Ba6 {[%emt 0:01:56]} 12. Bxa6 {[%emt 0:01:04]} Qxa6 {[%emt 0:00:17]} 13. Bxb4 {[%emt 0:05:56]} Nxb4 {[%emt 0:00:21]} 14. a3 {[%emt 0:00:45]} O-O {[%emt 0:02:29]} 15. Nc3 {[%emt 0:01:04]} Nbc6 {[%emt 0:02:34]} 16. a4 {[%emt 0:02:37]} Rac8 {[%emt 0:06:18]} 17. Nb5 {[%emt 0:03:04]} Na5 {[%emt 0:02:41]} 18. Nd2 {[%emt 0:03:10]} Nc4 {[%emt 0:03:12]} 19. Nb3 {[%emt 0:02:01]} Nc6 {[%emt 0:09:51]} 20. Nc5 {[%emt 0:02:47]} Qa5 {[%emt 0:00:27]} 21. Qg4 {[%emt 0:01:51]} N6xe5 {[%emt 0:04:02]} 22. Qg3 {[%emt 0:03:27]} a6 {[%emt 0:02:36]} 23. Nd6 {[%emt 0:13:27]} Nxd6 {[%emt 0:03:37]} 24. Qxe5 {[%emt 0:00:23]} Nc4 {[%emt 0:04:23]} 25. Qg5 {[%emt 0:01:04]} Rc7 {[%emt 0:06:45]} 26. Qg4 {[%emt 0:04:33]} Ra7 {[%emt 0:01:44]} 27. Rfb1 {[%emt 0:01:29]} h6 {[%emt 0:00:49]} 28. h3 {[%emt 0:01:36]} Qd2 {[%emt 0:01:02]} 29. Rd1 {[%emt 0:00:33]} Qg5 {[%emt 0:00:43]} 30. Qxg5 {[%emt 0:00:32]} hxg5 {[%emt 0:00:05]} 31. Rab1 {[%emt 0:00:41]} g6 {[%emt 0:01:19]} 32. Rb4 {[%emt 0:00:21]} Rc8 {[%emt 0:01:25]} 33. Rdb1 {[%emt 0:00:28]} a5 {[%emt 0:00:47]} 34. Rb7 {[%emt 0:00:45]} Rxb7 {[%emt 0:00:29]} 35. Rxb7 {[%emt 0:00:32]} e5 {[%emt 0:01:04]} 36. Nb3 {[%emt 0:00:28]} exd4 {[%emt 0:01:39]} 37. Nxd4 {[%emt 0:00:34]} Nd6 {[%emt 0:02:04]} 38. Rd7 {[%emt 0:00:47]} Rc1+ {[%emt 0:00:30]} 39. Kh2 {[%emt 0:00:06]} Rd1 {[%emt 0:00:44]} 40. Nc6 {[%emt 0:00:47]} Ne4 {[%emt 0:00:54]} 41. Rxd5 {[%emt 0:00:45]} Rxd5 {[%emt 0:00:44]} 42. Ne7+ {[%emt 0:00:03]} Kg7 {[%emt 0:00:18]} 43. Nxd5 {[%emt 0:00:04]} Nxf2 {[%emt 0:00:13]} 44. Ne3 {[%emt 0:00:26]} Ne4 {[%emt 0:00:42]} 45. Nc4 {[%emt 0:00:28]} Nc5 {[%emt 0:00:34]} 46. Kg3 {[%emt 0:00:53]} f5 {[%emt 0:01:14]} 47. Nxa5 {[%emt 0:00:09]} Nxa4 {[%emt 0:00:11]} 48. Nc4 {[%emt 0:00:28]} Nc3 {[%emt 0:00:24]} 49. Kf3 {[%emt 0:00:30]} Kf6 {[%emt 0:00:19]} 50. g4 {[%emt 0:01:02]} Nb5 {[%emt 0:00:38]} 51. Nb6 {[%emt 0:01:05]} Ke6 {[%emt 0:00:21]} 52. Ke3 {[%emt 0:00:50]} Nc3 {[%emt 0:00:36]} 53. Nc4 {[%emt 0:00:35]} Nd5+ {[%emt 0:01:17]} 54. Kf3 {[%emt 0:00:35]} Nf6 {[%emt 0:00:23]} 55. Ne3 {[%emt 0:00:42]} Ne4 {[%emt 0:01:08]} 56. Nc2 {[%emt 0:00:27]} Nd2+ {[%emt 0:00:26]} 57. Ke3 {[%emt 0:00:20]} Nc4+ {[%emt 0:00:13]} 58. Kf3 {[%emt 0:00:22]} Ke5 {[%emt 0:00:11]} 59. Nb4 {[%emt 0:00:27]} Na5 {[%emt 0:00:47]} 60. Nd3+ {[%emt 0:00:32]} Kd4 {[%emt 0:00:19]} 61. gxf5 {[%emt 0:00:29]} gxf5 {[%emt 0:00:03]} 62. Nf4 {[%emt 0:00:14]} Ke5 {[%emt 0:00:27]} 63. Nd3+ {[%emt 0:00:06]} Kd5 {[%emt 0:00:14]} 64. Nb4+ {[%emt 0:00:21]} Kd4 {[%emt 0:00:47]} 65. Nc2+ {[%emt 0:00:56]} Ke5 {[%emt 0:00:22]} 66. Ne3 {[%emt 0:00:19]} Nc6 {[%emt 0:00:35]} 67. Nc4+ {[%emt 0:00:56]} Kd4 {[%emt 0:00:21]} 68. Nd6 {[%emt 0:00:28]} Ne5+ {[%emt 0:00:23]} 69. Kf2 {[%emt 0:00:34]} Nd3+ {[%emt 0:00:52]} 70. Kf3 {[%emt 0:00:24]} Ne5+ {[%emt 0:00:57]} 71. Kf2 {[%emt 0:00:14]} f4 {[%emt 0:00:27]} 72. Nf5+ {[%emt 0:00:23]} Ke4 {[%emt 0:00:20]} 73. Nd6+ {[%emt 0:00:16]} Kd5 {[%emt 0:00:28]} 74. Nf5 {[%emt 0:00:23]} Ke6 {[%emt 0:00:26]} 75. Nd4+ {[%emt 0:00:12]} Kf6 {[%emt 0:00:15]} 76. Kg2 {[%emt 0:00:31]} Kg6 {[%emt 0:00:38]} 77. Ne6 {[%emt 0:00:41]} Nd3 {[%emt 0:00:48]} 78. Kf3 {[%emt 0:00:21]} Kf5 {[%emt 0:00:44]} 79. Nd4+ {[%emt 0:00:36]} Kg6 {[%emt 0:00:37]} 80. h4 {[%emt 0:01:29]} gxh4 {[%emt 0:01:12]} 81. Kg4 {[%emt 0:00:03]} Kf6 {[%emt 0:00:17]} 82. Nf3 {[%emt 0:00:41]} h3 {[%emt 0:00:38]} 83. Kxh3 {[%emt 0:00:14]} Kf5 {[%emt 0:00:03]} 84. Nd2 {[%emt 0:00:36]} Ne1 {[%emt 0:00:29]} 85. Kh2 {[%emt 0:00:30]} Kg4 {[%emt 0:00:06]} 86. Kg1 {[%emt 0:00:25]} Nf3+ {[%emt 0:00:05]} 87. Nxf3 {[%emt 0:00:04]} Kxf3 {[%emt 0:00:06]} 88. Kf1 {[%emt 0:00:01]} Ke3 {[%emt 0:00:06]} 89. Ke1 {[%emt 0:00:32]} f3 {[%emt 0:00:07]} 0-1

[Event "LJ Slovak Open 2022"]
[Site "Liptovsky Jan"]
[Date "2022.06.23"]
[Round "1.12"]
[White "Janousek, Petr"]
[Black "Bohacek, Ludovit"]
[Result "1-0"]
[ECO "C73"]
[WhiteElo "2099"]
[BlackElo "1594"]
[Annotator "NA RC"]
[PlyCount "109"]
[EventDate "2022.06.23"]
[EventType "swiss"]
[EventCountry "SVK"]
[SourceTitle "playchess.com"]
[Source "ChessBase"]
[SourceQuality "1"]
[TimeControl "3600+30"]

1. e4 {[%emt 0:01:08]} e5 {[%emt 0:00:33]} 2. Nf3 {[%emt 0:00:16]} Nc6 {[%emt 0:00:28]} 3. Bb5 {[%emt 0:01:16]} a6 {[%emt 0:00:27]} 4. Ba4 {[%emt 0:00:04]} d6 {[%emt 0:01:25]} 5. Bxc6+ {[%emt 0:01:09]} bxc6 {[%emt 0:01:30]} 6. d4 {[%emt 0:00:04]} Qe7 {[%emt 0:02:22]} 7. dxe5 {[%emt 0:07:09]} dxe5 {[%emt 0:01:07]} 8. O-O {[%emt 0:00:19]} Bg4 {[%emt 0:01:23]} 9. Nbd2 {[%emt 0:01:45]} Nf6 {[%emt 0:02:43]} 10. h3 {[%emt 0:05:52]} Bc8 {[%emt 0:02:17]} 11. Nc4 {[%emt 0:03:33]} Nd7 {[%emt 0:01:22]} 12. Qe1 {[%emt 0:04:22]} Qc5 {[%emt 0:05:35]} 13. b3 {[%emt 0:01:41]} f6 {[%emt 0:04:27]} 14. Be3 {[%emt 0:04:30]} Qb4 {[%emt 0:01:16]} 15. Bd2 {[%emt 0:06:05]} Qe7 {[%emt 0:02:48]} 16. Qe2 {[%emt 0:07:08]} Nb6 {[%emt 0:01:32]} 17. Ne3 {[%emt 0:02:01]} g6 {[%emt 0:00:31]} 18. Rfd1 {[%emt 0:02:53]} Bg7 {[%emt 0:00:24]} 19. Ne1 {[%emt 0:00:53]} f5 {[%emt 0:01:31]} 20. f3 {[%emt 0:04:34]} h5 {[%emt 0:01:09]} 21. Nc4 {[%emt 0:00:58]} f4 {[%emt 0:01:05]} 22. Nd3 {[%emt 0:02:10]} Nxc4 {[%emt 0:03:40]} 23. bxc4 {[%emt 0:00:31]} Qg5 {[%emt 0:00:55]} 24. Nf2 {[%emt 0:00:34]} O-O {[%emt 0:03:29]} 25. Rab1 {[%emt 0:00:24]} Rf7 {[%emt 0:00:42]} 26. Ba5 {[%emt 0:00:49]} Bf8 {[%emt 0:01:15]} 27. Bb4 {[%emt 0:00:54]} c5 {[%emt 0:01:43]} 28. Ba5 {[%emt 0:00:35]} Bd6 {[%emt 0:00:43]} 29. Be1 {[%emt 0:01:40]} Rf8 {[%emt 0:02:42]} 30. Qd2 {[%emt 0:00:15]} Be6 {[%emt 0:00:40]} 31. Qc3 {[%emt 0:01:13]} Rab8 {[%emt 0:01:02]} 32. Kh1 {[%emt 0:00:18]} Rb4 {[%emt 0:00:55]} 33. Rxb4 {[%emt 0:01:05]} cxb4 {[%emt 0:00:12]} 34. Qd3 {[%emt 0:01:38]} Be7 {[%emt 0:02:08]} 35. Qe2 {[%emt 0:01:54]} c5 {[%emt 0:01:10]} 36. c3 {[%emt 0:00:51]} a5 {[%emt 0:00:18]} 37. cxb4 {[%emt 0:00:13]} axb4 {[%emt 0:00:39]} 38. Qc2 {[%emt 0:00:32]} Ra8 {[%emt 0:00:34]} 39. Nd3 {[%emt 0:00:21]} Ra3 {[%emt 0:02:19]} 40. Rb1 {[%emt 0:01:00]} Qf6 {[%emt 0:01:02]} 41. Rb3 {[%emt 0:00:10]} Bd6 {[%emt 0:02:02]} 42. Rxa3 {[%emt 0:00:36]} bxa3 {[%emt 0:00:29]} 43. Qc3 {[%emt 0:01:36]} Qf7 {[%emt 0:00:40]} 44. Qxa3 {[%emt 0:03:47]} Bxc4 {[%emt 0:00:17]} 45. Nxc5 {[%emt 0:01:00]} Bxa2 {[%emt 0:01:21]} 46. Bf2 {[%emt 0:00:25]} Qc4 {[%emt 0:01:36]} 47. Kh2 {[%emt 0:00:13]} Qe2 {[%emt 0:02:04]} 48. Qa8+ {[%emt 0:00:31]} Kh7 {[%emt 0:00:10]} 49. Qa7+ {[%emt 0:00:50]} Kh6 {[%emt 0:00:23]} 50. Nd7 {[%emt 0:00:22]} Bg8 {[%emt 0:03:57]} 51. Nf6 {[%emt 0:00:02]} Qa2 {[%emt 0:00:33]} 52. Qd7 {[%emt 0:01:17]} Qe6 {[%emt 0:06:12]} 53. Nxg8+ {[%emt 0:00:06]} Qxg8 {[%emt 0:00:34]} 54. Qxd6 {[%emt 0:00:04]} Qg7 {[%emt 0:00:48]} 55. Be1 {[%emt 0:00:13]} 1-0

[Event "LJ Slovak Open 2022"]
[Site "Liptovsky Jan"]
[Date "2022.06.23"]
[Round "1.13"]
[White "Dicer, Juraj"]
[Black "Hurtuk, Radovan"]
[Result "0-1"]
[ECO "D85"]
[WhiteElo "1562"]
[BlackElo "2057"]
[Annotator "NA RC"]
[PlyCount "46"]
[EventDate "2022.06.23"]
[EventType "swiss"]
[EventCountry "SVK"]
[SourceTitle "playchess.com"]
[Source "ChessBase"]
[SourceQuality "1"]
[TimeControl "3600+30"]

1. d4 {[%emt 0:00:09]} Nf6 {[%emt 0:00:12]} 2. c4 {[%emt 0:00:12]} g6 {[%emt 0:00:15]} 3. Nc3 {[%emt 0:00:09]} d5 {[%emt 0:00:17]} 4. cxd5 {[%emt 0:00:23]} Nxd5 {[%emt 0:00:11]} 5. e4 {[%emt 0:00:17]} Nxc3 {[%emt 0:00:08]} 6. bxc3 {[%emt 0:00:04]} Bg7 {[%emt 0:00:17]} 7. Nf3 {[%emt 0:01:14]} c5 {[%emt 0:00:14]} 8. Bb5+ {[%emt 0:00:52]} Nc6 {[%emt 0:00:50]} 9. Be3 {[%emt 0:01:58]} O-O {[%emt 0:00:14]} 10. O-O {[%emt 0:00:14]} Bg4 {[%emt 0:00:57]} 11. Be2 {[%emt 0:00:29]} Bxf3 {[%emt 0:00:55]} 12. Bxf3 {[%emt 0:00:29]} cxd4 {[%emt 0:00:15]} 13. cxd4 {[%emt 0:00:44]} Nxd4 {[%emt 0:00:12]} 14. Rb1 {[%emt 0:02:44]} Nxf3+ {[%emt 0:01:22]} 15. Qxf3 {[%emt 0:00:40]} b6 {[%emt 0:00:25]} 16. Rfd1 {[%emt 0:00:32]} Qc8 {[%emt 0:00:30]} 17. Rbc1 {[%emt 0:00:24]} Qb7 {[%emt 0:01:06]} 18. Qg4 {[%emt 0:03:58]} Rfd8 {[%emt 0:00:34]} 19. Rxd8+ {[%emt 0:01:32]} Rxd8 {[%emt 0:00:08]} 20. h4 {[%emt 0:00:51]} h5 {[%emt 0:00:29]} 21. Qg5 {[%emt 0:00:52]} Qxe4 {[%emt 0:01:02]} 22. Rc7 {[%emt 0:00:53]} Rd1+ {[%emt 0:00:15]} 23. Kh2 {[%emt 0:00:51]} Be5+ {[%emt 0:00:12]} 0-1

[Event "LJ Slovak Open 2022"]
[Site "Liptovsky Jan"]
[Date "2022.06.23"]
[Round "1.14"]
[White "Ihnat, Marek"]
[Black "Skutil, Frantisek Elias"]
[Result "1-0"]
[ECO "B62"]
[WhiteElo "2045"]
[BlackElo "1552"]
[Annotator "NA RC"]
[PlyCount "79"]
[EventDate "2022.06.23"]
[EventType "swiss"]
[EventCountry "SVK"]
[SourceTitle "playchess.com"]
[Source "ChessBase"]
[SourceQuality "1"]
[TimeControl "3600+30"]

1. e4 {[%emt 0:00:07]} c5 {[%emt 0:00:13]} 2. Nf3 {[%emt 0:00:08]} d6 {[%emt 0:00:11]} 3. d4 {[%emt 0:00:07]} cxd4 {[%emt 0:00:08]} 4. Nxd4 {[%emt 0:00:06]} Nc6 {[%emt 0:01:22]} 5. Nc3 {[%emt 0:00:21]} Nf6 {[%emt 0:02:59]} 6. Bg5 {[%emt 0:00:07]} e6 {[%emt 0:01:23]} 7. Qd3 {[%emt 0:00:35]} Be7 {[%emt 0:11:24]} 8. O-O-O {[%emt 0:00:48]} d5 {[%emt 0:07:12]} 9. exd5 {[%emt 0:13:18]} Nxd5 {[%emt 0:03:32]} 10. Bxe7 {[%emt 0:00:19]} Ncxe7 {[%emt 0:03:03]} 11. Ne4 {[%emt 0:11:42]} Qc7 {[%emt 0:09:52]} 12. Kb1 {[%emt 0:11:21]} Bd7 {[%emt 0:02:59]} 13. Nb5 {[%emt 0:02:54]} Bxb5 {[%emt 0:02:11]} 14. Qxb5+ {[%emt 0:00:06]} Nc6 {[%emt 0:02:42]} 15. c4 {[%emt 0:02:43]} Nf6 {[%emt 0:05:59]} 16. Nd6+ {[%emt 0:05:02]} Kf8 {[%emt 0:03:29]} 17. Be2 {[%emt 0:09:00]} Nd8 {[%emt 0:08:32]} 18. Bf3 {[%emt 0:00:49]} Rb8 {[%emt 0:00:51]} 19. Rd2 {[%emt 0:01:32]} Qb6 {[%emt 0:00:49]} 20. Rhd1 {[%emt 0:04:43]} Qxb5 {[%emt 0:00:53]} 21. Nxb5 {[%emt 0:00:13]} Ke7 {[%emt 0:00:43]} 22. Nxa7 {[%emt 0:00:26]} e5 {[%emt 0:00:32]} 23. b3 {[%emt 0:01:59]} e4 {[%emt 0:00:25]} 24. Re2 {[%emt 0:00:56]} Ra8 {[%emt 0:00:34]} 25. Nb5 {[%emt 0:00:11]} Kf8 {[%emt 0:00:31]} 26. Bxe4 {[%emt 0:00:27]} Ng4 {[%emt 0:00:30]} 27. h3 {[%emt 0:01:45]} Nf6 {[%emt 0:00:20]} 28. Bf3 {[%emt 0:00:18]} Rb8 {[%emt 0:00:31]} 29. Kb2 {[%emt 0:00:34]} Ne6 {[%emt 0:00:18]} 30. g3 {[%emt 0:01:00]} Ke7 {[%emt 0:00:32]} 31. Nd4 {[%emt 0:00:25]} Rhe8 {[%emt 0:00:25]} 32. Nxe6 {[%emt 0:00:17]} fxe6 {[%emt 0:00:10]} 33. Kc3 {[%emt 0:00:46]} Kf7 {[%emt 0:01:13]} 34. Red2 {[%emt 0:00:31]} e5 {[%emt 0:00:31]} 35. Bd5+ {[%emt 0:00:19]} Ke7 {[%emt 0:00:27]} 36. Re2 {[%emt 0:00:26]} Nxd5+ {[%emt 0:00:23]} 37. Rxd5 {[%emt 0:00:12]} Kf6 {[%emt 0:00:08]} 38. b4 {[%emt 0:01:25]} Ra8 {[%emt 0:00:40]} 39. Kb3 {[%emt 0:00:25]} Ra7 {[%emt 0:00:49]} 40. a4 {[%emt 0:00:37]} 1-0

[Event "LJ Slovak Open 2022"]
[Site "Liptovsky Jan"]
[Date "2022.06.23"]
[Round "1.15"]
[White "Straka, Simon"]
[Black "Macka, Oto"]
[Result "0-1"]
[ECO "A85"]
[WhiteElo "1523"]
[BlackElo "2026"]
[Annotator "NA RC"]
[PlyCount "42"]
[EventDate "2022.06.23"]
[EventType "swiss"]
[EventCountry "SVK"]
[SourceTitle "playchess.com"]
[Source "ChessBase"]
[SourceQuality "1"]
[TimeControl "3600+30"]

1. d4 {[%emt 0:00:05]} f5 {[%emt 0:18:48]} 2. c4 {[%emt 0:00:11]} Nf6 {[%emt 0:00:04]} 3. Nf3 {[%emt 0:00:09]} g6 {[%emt 0:00:04]} 4. Nc3 {[%emt 0:01:26]} Bg7 {[%emt 0:00:03]} 5. Qc2 {[%emt 0:04:09]} O-O {[%emt 0:00:29]} 6. g3 {[%emt 0:01:38]} d6 {[%emt 0:00:05]} 7. Bg2 {[%emt 0:08:29]} Qe8 {[%emt 0:02:20]} 8. b3 {[%emt 0:11:51]} e5 {[%emt 0:02:06]} 9. dxe5 {[%emt 0:05:01]} dxe5 {[%emt 0:00:22]} 10. Ng5 {[%emt 0:01:23]} c6 {[%emt 0:06:06]} 11. Ba3 {[%emt 0:01:40]} h6 {[%emt 0:03:32]} 12. Bxf8 {[%emt 0:01:08]} Bxf8 {[%emt 0:00:26]} 13. Nf3 {[%emt 0:02:22]} Bd6 {[%emt 0:00:25]} 14. Rd1 {[%emt 0:01:22]} Bc7 {[%emt 0:00:06]} 15. e4 {[%emt 0:03:03]} f4 {[%emt 0:00:57]} 16. gxf4 {[%emt 0:02:58]} exf4 {[%emt 0:05:03]} 17. Nd4 {[%emt 0:02:29]} Nbd7 {[%emt 0:02:47]} 18. O-O {[%emt 0:01:16]} Ne5 {[%emt 0:03:09]} 19. Kh1 {[%emt 0:03:49]} g5 {[%emt 0:00:58]} 20. Nf5 {[%emt 0:05:38]} Qh5 {[%emt 0:07:12]} 21. h3 {[%emt 0:04:56]} g4 {[%emt 0:04:47]} 0-1

[Event "LJ Slovak Open 2022"]
[Site "Liptovsky Jan"]
[Date "2022.06.23"]
[Round "1.16"]
[White "Chlpek, Daniel"]
[Black "Freibergs, Andrejs"]
[Result "1/2-1/2"]
[ECO "E65"]
[WhiteElo "2030"]
[BlackElo "1526"]
[Annotator "NA RC"]
[PlyCount "90"]
[EventDate "2022.06.23"]
[EventType "swiss"]
[EventCountry "SVK"]
[SourceTitle "playchess.com"]
[Source "ChessBase"]
[SourceQuality "1"]
[TimeControl "3600+30"]

1. c4 {[%emt 0:00:03]} Nf6 {[%emt 0:00:41]} 2. Nc3 {[%emt 0:00:08]} g6 {[%emt 0:00:21]} 3. g3 {[%emt 0:00:08]} Bg7 {[%emt 0:01:07]} 4. Bg2 {[%emt 0:00:07]} O-O {[%emt 0:00:23]} 5. Nf3 {[%emt 0:00:07]} c5 {[%emt 0:01:28]} 6. O-O {[%emt 0:00:20]} d6 {[%emt 0:00:15]} 7. d4 {[%emt 0:00:06]} cxd4 {[%emt 0:03:53]} 8. Nxd4 {[%emt 0:00:14]} a6 {[%emt 0:00:13]} 9. b3 {[%emt 0:02:11]} Qc7 {[%emt 0:02:57]} 10. Bb2 {[%emt 0:00:20]} Nc6 {[%emt 0:00:42]} 11. Nc2 {[%emt 0:00:17]} Bd7 {[%emt 0:04:51]} 12. Ne3 {[%emt 0:00:07]} Qd8 {[%emt 0:02:57]} 13. Qd2 {[%emt 0:07:11]} Rb8 {[%emt 0:03:25]} 14. Rac1 {[%emt 0:02:58]} Ne8 {[%emt 0:09:05]} 15. Ncd5 {[%emt 0:01:15]} e5 {[%emt 0:01:04]} 16. Rfd1 {[%emt 0:01:43]} f5 {[%emt 0:01:00]} 17. Nc2 {[%emt 0:07:01]} f4 {[%emt 0:06:03]} 18. c5 {[%emt 0:05:13]} Bh6 {[%emt 0:04:41]} 19. cxd6 {[%emt 0:03:35]} Nf6 {[%emt 0:06:22]} 20. Ne7+ {[%emt 0:00:45]} Kg7 {[%emt 0:00:10]} 21. e3 {[%emt 0:00:36]} Bg4 {[%emt 0:02:53]} 22. Nxc6 {[%emt 0:02:41]} bxc6 {[%emt 0:00:23]} 23. Re1 {[%emt 0:01:42]} f3 {[%emt 0:02:46]} 24. Bf1 {[%emt 0:00:11]} Re8 {[%emt 0:01:40]} 25. d7 {[%emt 0:01:23]} Re7 {[%emt 0:00:49]} 26. Qc3 {[%emt 0:02:26]} Qxd7 {[%emt 0:02:00]} 27. Ba3 {[%emt 0:02:36]} Ree8 {[%emt 0:00:57]} 28. Nb4 {[%emt 0:02:35]} Nd5 {[%emt 0:01:09]} 29. Nxd5 {[%emt 0:01:12]} cxd5 {[%emt 0:00:05]} 30. Qc7 {[%emt 0:00:38]} Rb7 {[%emt 0:00:43]} 31. Qxd7+ {[%emt 0:00:58]} Rxd7 {[%emt 0:00:03]} 32. Bb2 {[%emt 0:00:49]} d4 {[%emt 0:01:24]} 33. Rcd1 {[%emt 0:05:48]} dxe3 {[%emt 0:00:32]} 34. Rxd7+ {[%emt 0:00:09]} Bxd7 {[%emt 0:00:04]} 35. fxe3 {[%emt 0:00:11]} Kf7 {[%emt 0:01:51]} 36. Kf2 {[%emt 0:00:32]} e4 {[%emt 0:00:18]} 37. Rc1 {[%emt 0:00:47]} Bb5 {[%emt 0:02:39]} 38. Bc4+ {[%emt 0:05:34]} Bxc4 {[%emt 0:00:10]} 39. Rxc4 {[%emt 0:00:02]} Re7 {[%emt 0:01:14]} 40. b4 {[%emt 0:02:31]} Bg7 {[%emt 0:01:22]} 41. Bxg7 {[%emt 0:00:36]} Kxg7 {[%emt 0:00:03]} 42. a4 {[%emt 0:00:11]} Kf6 {[%emt 0:00:19]} 43. b5 {[%emt 0:01:22]} axb5 {[%emt 0:00:13]} 44. axb5 {[%emt 0:00:12]} Ke5 {[%emt 0:00:31]} 45. b6 {[%emt 0:02:33]} Rb7 {[%emt 0:01:15]} 1/2-1/2

[Event "LJ Slovak Open 2022"]
[Site "Liptovsky Jan"]
[Date "2022.06.23"]
[Round "1.17"]
[White "Gay, Lukas"]
[Black "Stric, Dusan"]
[Result "0-1"]
[ECO "B06"]
[WhiteElo "1480"]
[BlackElo "2021"]
[Annotator "NA RC"]
[PlyCount "54"]
[EventDate "2022.06.23"]
[EventType "swiss"]
[EventCountry "SVK"]
[SourceTitle "playchess.com"]
[Source "ChessBase"]
[SourceQuality "1"]
[TimeControl "3600+30"]

1. d4 {[%emt 0:00:55]} g6 {[%emt 0:00:02]} 2. e4 {[%emt 0:00:59]} Bg7 {[%emt 0:00:26]} 3. Nf3 {[%emt 0:00:54]} d6 {[%emt 0:00:02]} 4. Nc3 {[%emt 0:01:17]} Nd7 {[%emt 0:00:03]} 5. Be3 {[%emt 0:01:03]} e5 {[%emt 0:00:04]} 6. dxe5 {[%emt 0:01:37]} Nxe5 {[%emt 0:00:15]} 7. Nxe5 {[%emt 0:01:30]} Bxe5 {[%emt 0:03:06]} 8. f4 {[%emt 0:02:19]} Bg7 {[%emt 0:00:25]} 9. Bd4 {[%emt 0:01:36]} f6 {[%emt 0:03:34]} 10. Bc4 {[%emt 0:01:17]} Nh6 {[%emt 0:00:26]} 11. Qd2 {[%emt 0:01:50]} Nf7 {[%emt 0:00:51]} 12. O-O-O {[%emt 0:02:10]} O-O {[%emt 0:00:59]} 13. h3 {[%emt 0:01:15]} a6 {[%emt 0:03:42]} 14. g4 {[%emt 0:00:31]} b5 {[%emt 0:01:23]} 15. Bxf7+ {[%emt 0:00:32]} Rxf7 {[%emt 0:00:37]} 16. f5 {[%emt 0:01:06]} Bb7 {[%emt 0:02:30]} 17. Rde1 {[%emt 0:03:40]} d5 {[%emt 0:06:51]} 18. fxg6 {[%emt 0:03:48]} hxg6 {[%emt 0:01:36]} 19. exd5 {[%emt 0:01:21]} Bxd5 {[%emt 0:00:13]} 20. Rh2 {[%emt 0:01:03]} Bb7 {[%emt 0:08:11]} 21. Qf4 {[%emt 0:02:05]} Qf8 {[%emt 0:01:32]} 22. Kb1 {[%emt 0:01:07]} Rd8 {[%emt 0:04:18]} 23. Qe3 {[%emt 0:03:28]} Qd6 {[%emt 0:01:10]} 24. Rhe2 {[%emt 0:01:42]} Qxd4 {[%emt 0:01:04]} 25. Qc1 {[%emt 0:01:55]} Qc5 {[%emt 0:03:29]} 26. Ne4 {[%emt 0:01:46]} Bxe4 {[%emt 0:03:59]} 27. Rxe4 {[%emt 0:00:06]} Qg5 {[%emt 0:03:35]} 0-1

[Event "LJ Slovak Open 2022"]
[Site "Liptovsky Jan"]
[Date "2022.06.23"]
[Round "1.18"]
[White "Ambrozi, Peter"]
[Black "Koren, Juraj"]
[Result "0-1"]
[ECO "D79"]
[WhiteElo "1994"]
[BlackElo "1506"]
[Annotator "NA RC"]
[PlyCount "97"]
[EventDate "2022.06.23"]
[EventType "swiss"]
[EventCountry "SVK"]
[SourceTitle "playchess.com"]
[Source "ChessBase"]
[SourceQuality "1"]
[TimeControl "3600+30"]

1. Nf3 {[%emt 0:00:08]} d5 {[%emt 0:00:30]} 2. d4 {[%emt 0:00:31]} g6 {[%emt 0:01:07]} 3. c4 {[%emt 0:00:59]} c6 {[%emt 0:00:23]} 4. cxd5 {[%emt 0:02:25]} cxd5 {[%emt 0:00:17]} 5. Nc3 {[%emt 0:00:08]} Bg7 {[%emt 0:00:15]} 6. g3 {[%emt 0:01:26]} Nf6 {[%emt 0:00:53]} 7. Bg2 {[%emt 0:00:10]} O-O {[%emt 0:00:12]} 8. O-O {[%emt 0:00:51]} Nc6 {[%emt 0:00:51]} 9. Ne5 {[%emt 0:01:07]} e6 {[%emt 0:03:08]} 10. Bf4 {[%emt 0:02:36]} Nh5 {[%emt 0:03:06]} 11. Nxc6 {[%emt 0:00:55]} bxc6 {[%emt 0:00:21]} 12. Be3 {[%emt 0:00:14]} Nf6 {[%emt 0:02:57]} 13. Na4 {[%emt 0:01:12]} Nd7 {[%emt 0:00:23]} 14. Rc1 {[%emt 0:01:00]} Bb7 {[%emt 0:00:18]} 15. Qb3 {[%emt 0:06:31]} Rb8 {[%emt 0:13:32]} 16. Bf4 {[%emt 0:02:04]} e5 {[%emt 0:00:07]} 17. dxe5 {[%emt 0:00:15]} Bxe5 {[%emt 0:00:14]} 18. Bxe5 {[%emt 0:01:07]} Nxe5 {[%emt 0:00:03]} 19. Qc3 {[%emt 0:03:09]} Re8 {[%emt 0:01:47]} 20. e3 {[%emt 0:03:02]} Ba6 {[%emt 0:04:50]} 21. Rfd1 {[%emt 0:00:31]} Bb5 {[%emt 0:01:44]} 22. Nc5 {[%emt 0:00:16]} Qe7 {[%emt 0:06:37]} 23. b3 {[%emt 0:09:59]} Rb6 {[%emt 0:04:11]} 24. Rd2 {[%emt 0:00:43]} Nd7 {[%emt 0:00:55]} 25. Nxd7 {[%emt 0:02:47]} Qxd7 {[%emt 0:00:08]} 26. e4 {[%emt 0:00:17]} Qe7 {[%emt 0:09:30]} 27. exd5 {[%emt 0:05:56]} cxd5 {[%emt 0:04:03]} 28. Bxd5 {[%emt 0:01:19]} h5 {[%emt 0:03:33]} 29. Rd4 {[%emt 0:04:27]} Rf6 {[%emt 0:01:48]} 30. Re4 {[%emt 0:01:57]} Qd6 {[%emt 0:01:27]} 31. Rxe8+ {[%emt 0:02:13]} Bxe8 {[%emt 0:00:08]} 32. Rd1 {[%emt 0:02:36]} Qb6 {[%emt 0:00:24]} 33. Qd4 {[%emt 0:01:41]} Bb5 {[%emt 0:02:55]} 34. Qxb6 {[%emt 0:01:31]} Rxb6 {[%emt 0:00:09]} 35. Rc1 {[%emt 0:00:34]} Kf8 {[%emt 0:00:58]} 36. Rc7 {[%emt 0:00:21]} Be8 {[%emt 0:01:20]} 37. Rxa7 {[%emt 0:00:31]} g5 {[%emt 0:00:23]} 38. Bc4 {[%emt 0:02:15]} f5 {[%emt 0:00:26]} 39. Ra5 {[%emt 0:00:28]} Bg6 {[%emt 0:00:16]} 40. Ra6 {[%emt 0:00:15]} Rxa6 {[%emt 0:00:15]} 41. Bxa6 {[%emt 0:00:11]} Ke7 {[%emt 0:00:01]} 42. f4 {[%emt 0:00:20]} g4 {[%emt 0:00:20]} 43. Kf2 {[%emt 0:00:07]} Kd6 {[%emt 0:00:01]} 44. Ke3 {[%emt 0:00:16]} Kc5 {[%emt 0:00:21]} 45. Bc4 {[%emt 0:00:11]} Kb4 {[%emt 0:00:39]} 46. Kd4 {[%emt 0:00:23]} Ka3 {[%emt 0:05:44]} 47. Kc5 {[%emt 0:12:05]} Kxa2 {[%emt 0:00:30]} 48. b4+ {[%emt 0:00:30]} Ka3 {[%emt 0:00:30]} 49. b5 {[%emt 0:00:30]} 0-1